[Event "Oceania Zonal Open 2023"]
[Site "Melbourne"]
[Date "2023.01.24"]
[Round "3.7"]
[White "Solomon, Stephen J"]
[Black "Bassig, Hamish"]
[Result "1-0"]
[ECO "B15"]
[WhiteElo "2279"]
[BlackElo "1973"]
[Annotator "TA"]
[PlyCount "79"]
[EventDate "2023.01.09"]
[EventType "swiss"]
[EventCountry "AUS"]
[SourceTitle "playchess.com"]
[Source "ChessBase"]
[SourceQuality "1"]
[TimeControl "5400+30"]

{[%evp 14,79,20,25,28,39,50,28,16,10,27,0,0,0,0,0,0,-32,-48,-35,0,0,0,0,0,0,0,0,0,-42,-35,-38,0,0,0,0,0,0,0,0,0,-25,-25,-35,-37,-43,-9,-157,-164,-202,-116,-116,-116,-214,-201,-389,-385,-362,-345,-516,947,902,29990,29991,29991,29992,29996,366]} 1. e4 {[%emt 0:00:45]} c6 {[%emt 0:00:06]} 2. d4 {[%emt 0:00:50]} d5 {[%emt 0:00:06]} 3. Nd2 {[%emt 0:00:06]} dxe4 {[%emt 0:00:20]} 4. Nxe4 {[%emt 0:00:08]} Nf6 {[%emt 0:00:05]} 5. Nxf6+ {[%emt 0:00:17]} exf6 {[%emt 0:00:06]} 6. c3 {[%emt 0:00:14]} Bd6 {[%emt 0:00:57]} 7. Bd3 {[%emt 0:01:13]} O-O {[%emt 0:00:10]} 8. Qc2 {[%emt 0:00:50] Active counter play!} Re8+ {[%emt 0:00:06] B15: Caro-Kann: 3 Nc3: 3...g6 and 3...dxe4 4 Nxe4 Nf6 5 Nxf6+ exf6.} 9. Ne2 {[%emt 0:01:30]} h5 {[%emt 0:00:05]} 10. Be3 {[%emt 0:01:03]} Nd7 {[%emt 0:00:05] White has an edge.} 11. O-O-O {[%emt 0:00:39]} Nf8 {[%emt 0:00:42]} 12. Kb1 {[%emt 0:05:54]} Be6 {[%emt 0:00:07]} 13. c4 {[%emt 0:01:05]} Rc8 {[%emt 0:00:29] [#]} 14. Rc1 $146 {[%emt 0:13:45]} ({Predecessor:} 14. Nc3 Bb4 15. a3 Bxc3 16. Qxc3 b5 17. d5 cxd5 18. c5 Qd7 19. Ka1 a6 20. Bd4 {1-0 Tabatabaei,M (2629)-Svane,R (2613) Titled Tuesday intern op 14th July blitz 2020 (8)}) 14... b5 {[%emt 0:07:12][%cal Of8g6]} 15. d5 {[%emt 0:05:56][%mdl 64] Discovered Attack} cxd5 {[%emt 0:01:17][%cal Rb5c4]} 16. c5 {[%emt 0:00:11]} d4 {[%emt 0:19:12]} 17. Nxd4 {[%emt 0:28:52]} Bxc5 {[%emt 0:00:07]} ({But not} 17... Rxc5 18. Nxe6 Rxc2 19. Nxd8 Rxc1+ 20. Rxc1 $16) 18. Nxe6 {[%emt 0:05:33]} Nxe6 {[%emt 0:01:20]} 19. Bxb5 {[%emt 0:01:48]} Bxe3 {[%emt 0:01:29][%mdl 64] Discovered Attack} 20. Qxc8 {[%emt 0:00:07]} Bxc1 {[%emt 0:00:31]} (20... Qxc8 {simplifies} 21. Rxc8 Rxc8 22. fxe3 Rd8) 21. Qc6 {[%emt 0:08:13]} Re7 {[%emt 0:01:05]} (21... Nc7 $5 22. Rxc1 Nxb5 23. Qxb5 g6 $15) 22. Rxc1 {[%emt 0:00:08]} Kh7 {[%emt 0:05:00][%cal Bg8h7,Bh7h6,Bh6g7][%mdl 32]} (22... Qd4 $5 {[%cal Re7c7]}) 23. Qf3 {[%emt 0:01:39]} Kh6 {[%emt 0:05:50]} 24. a4 {[%emt 0:01:55]} Rc7 {[%emt 0:21:41]} 25. Rd1 {[%emt 0:01:48]} Qe7 {[%emt 0:00:26]} 26. h4 {[%emt 0:04:09]} g6 {[%emt 0:01:39]} 27. g3 {[%emt 0:00:17]} Kg7 {[%emt 0:01:24]} 28. Qe3 {[%emt 0:06:37]} Qb4 {[%emt 0:03:51][%cal Oa7a6]} 29. Qd2 {[%emt 0:00:27]} Qe4+ {[%emt 0:00:58]} 30. Ka2 {[%emt 0:06:03] [#]} (30. Qd3 $11 {was the only way to keep the balance.} Nc5 {[%mdl 64] Pin} 31. f3) 30... a6 $1 $17 {[%emt 0:02:28][%mdl 512]} 31. Re1 {[%emt 0:02:12] [#]} (31. Qd5 Qxd5+) 31... Qb7 {[%emt 0:03:03]} ({Black should try} 31... Qg4 $1 $19 32. Bd3 Qxa4+ 33. Kb1 Nc5) 32. Bf1 {[%emt 0:00:20]} Nc5 {[%emt 0:00:45][%cal Be6c5,Bc5a4,Ba4b6][%mdl 32]} 33. Bc4 {[%emt 0:01:00] Wards off Qb3+} (33. Rc1 $17) 33... Nxa4 {[%emt 0:01:10]} 34. b3 {[%emt 0:00:21]} (34. Bb3 Nc5 35. Bc2) 34... Rd7 $19 {[%emt 0:00:31]} 35. Qa5 {[%emt 0:01:01]} Nb6 {[%emt 0:02:30] ...Nxc4 would be deadly.} 36. Qb4 {[%emt 0:00:10]} (36. Rc1 $142 Nxc4 37. Rxc4) 36... Qa7 $4 {[%emt 0:01:45][%mdl 8192] [#]} (36... a5 $19 37. Qc3 (37. Qxa5 $2 {perishes.} Nxc4 {[%mdl 64] Remove Defender} 38. bxc4 Qf3 $19) 37... a4) 37. Re8 $1 $18 {[%emt 0:00:36] Qf8+ would kill now.} g5 {[%emt 0:03:17]} 38. Qf8+ {[%emt 0:00:07] White mates.} Kg6 {[%emt 0:00:06]} 39. Qg8+ {[%emt 0:00:15]} Kf5 {[%emt 0:00:41]} 40. Qh7+ {[%emt 0:00:13] Weighted Error Value: White=0.31/Black=0.21 (precise)} 1-0

[Event "Oceania Zonal Open 2023"]
[Site "Melbourne"]
[Date "2023.01.24"]
[Round "3.7"]
[White "Wang, Ruicheng"]
[Black "Rujevic, Mirko"]
[Result "1/2-1/2"]
[ECO "C10"]
[WhiteElo "1891"]
[BlackElo "2141"]
[Annotator "TA"]
[PlyCount "105"]
[EventDate "2023.01.09"]
[EventType "swiss"]
[EventCountry "AUS"]
[SourceTitle "playchess.com"]
[Source "ChessBase"]
[SourceQuality "1"]
[TimeControl "5400+30"]

{[%evp 12,105,29,25,26,20,21,27,40,18,29,29,25,24,29,0,8,-21,10,0,0,-3,-3,-6,-4,-3,-3,-6,-6,-34,-26,-102,-89,-97,-76,-396,-353,-482,-72,-439,-431,-1037,-951,-810,-6,-8,-10,0,0,0,0,-20,-20,-16,16,17,30,0,5,7,7,8,23,6,35,32,49,0,279,277,217,216,300,197,270,249,215,202,193,192,352,52,67,8,8,8,8,0,0,0,0,0,0,0,0,0]} 1. e4 {[%emt 0:31:35]} e6 {[%emt 0:00:50]} 2. d4 {[%emt 0:00:04]} d5 {[%emt 0:00:04]} 3. Nd2 {[%emt 0:00:03]} dxe4 {[%emt 0:01:14]} 4. Nxe4 {[%emt 0:00:06]} Nd7 {[%emt 0:00:55]} 5. Nf3 {[%emt 0:00:06]} Ngf6 {[%emt 0:00:16]} 6. Nxf6+ {[%emt 0:00:09]} Nxf6 {[%emt 0:00:14]} 7. g3 {[%emt 0:00:02] 7.c3 is a critical line.} b6 {[%emt 0:01:24] C10: French with 3 Nc3: Unusual Black 3rd moves and 3...dxe4.} 8. Bb5+ {[%emt 0:00:05]} Bd7 {[%emt 0:00:15]} 9. a4 {[%emt 0:00:05]} c6 {[%emt 0:07:00] White has an edge.} 10. Be2 {[%emt 0:01:24] [#]} Bd6 $146 {[%emt 0:03:50]} ({Predecessor:} 10... c5 11. Ne5 cxd4 12. Nxd7 Nxd7 13. Qxd4 Qf6 14. Qxf6 gxf6 15. O-O Bc5 16. Rd1 Ke7 {½-½ Roobol,M (2243)-Groffen,H (2115) NED-chT 1819 2018 (6.6)}) 11. O-O {[%emt 0:02:10]} Qc7 {[%emt 0:02:15]} 12. Re1 {[%emt 0:17:36]} O-O {[%emt 0:04:17]} 13. Qd3 {[%emt 0:10:42]} h6 {[%emt 0:02:45]} 14. Bd2 {[%emt 0:06:18]} a5 {[%emt 0:08:01]} 15. Bf1 {[%emt 0:10:44]} Bc8 {[%emt 0:02:16][%cal Bd7c8,Bc8a6,Ba6b7][%mdl 32]} 16. Bg2 {[%emt 0:03:35]} Ba6 {[%emt 0:05:55]} 17. c4 {[%emt 0:07:30]} Rad8 {[%emt 0:00:55]} (17... c5 {keeps more tension.} 18. dxc5 Bxc5 19. Ne5 Rad8) 18. Qc2 {[%emt 0:00:29]} c5 {[%emt 0:01:00]} 19. dxc5 {[%emt 0:07:27]} Bxc5 {[%emt 0:03:11]} 20. b3 {[%emt 0:13:46]} Bb7 {[%emt 0:01:03]} 21. Bc3 {[%emt 0:01:10]} (21. Ne5 $1 $11 {was the only way to keep the balance.}) 21... Ng4 $17 {[%emt 0:05:58]} 22. Re2 {[%emt 0:00:50]} f5 $1 {[%emt 0:03:06] Strongly threatening ...f4.} 23. Nh4 $2 {[%emt 0:09:11][%mdl 8192]} (23. Ne5 $17) 23... Bxg2 {[%emt 0:02:20]} 24. Nxg2 {[%emt 0:01:20] [#]} e5 {[%emt 0:12:33] Wards off Nf4} (24... f4 $1 $19 {[%cal Rf4g3] has better winning chances.} 25. Qg6 Nxf2 26. Bxg7 (26. Qxe6+ $2 Kh7 $19) 26... Qxg7 27. Qxg7+ Kxg7 28. Nxf4 Nd3+ 29. Kh1 Nxf4 30. gxf4 Rxf4) 25. Nh4 $2 {[%emt 0:04:33][%mdl 8192]} (25. h3 $2 Nxf2 26. Rxf2 e4 $19) (25. Rd1 $17 {is more resistant.}) 25... f4 $19 {[%emt 0:09:59]} 26. Rf1 {[%emt 0:02:48]} (26. Kg2 $142 Qf7 27. Qe4 Nxf2 28. Rxf2 Bxf2 29. Nf3) 26... fxg3 {[%emt 0:01:37]} 27. hxg3 {[%emt 0:00:05]} Nxf2 $2 {[%emt 0:00:50]} (27... e4 $19 28. Kh1 Nxf2+ {[%mdl 64] Remove Defender, Decoy} 29. Rexf2 Bxf2 30. Rxf2 Qxg3) 28. Rfxf2 {[%emt 0:00:11]} Rxf2 {[%emt 0:00:22]} 29. Rxf2 {[%emt 0:00:07][%cal Oc2e4]} Rf8 {[%emt 0:00:09][%mdl 64] Pin} 30. Be1 {[%emt 0:01:08][%cal Og1h2]} e4 {[%emt 0:01:32]} 31. Kg2 {[%emt 0:01:14] Hoping for Rxf8+.} Bxf2 {[%emt 0:00:45]} 32. Bxf2 {[%emt 0:00:07]} Qc6 {[%emt 0:00:24]} (32... g5 $5 33. Qxe4 (33. Ng6 $2 Re8 $19) 33... gxh4 34. Qg6+ Qg7 35. Qxg7+ Kxg7 36. gxh4 (36. Bxb6 Rb8 $15) 36... Rb8 $15) 33. Kg1 {[%emt 0:00:42]} Qe6 {[%emt 0:07:22]} 34. Qe2 {[%emt 0:00:16]} g5 $132 {[%emt 0:03:51][%mdl 2048] Black is fighting back} 35. Ng2 {[%emt 0:00:04]} Rf3 {[%emt 0:00:10]} 36. Ne3 {[%emt 0:00:47]} h5 {[%emt 0:00:49]} 37. Qd2 {[%emt 0:00:32]} (37. Nf1 $5 {[%cal Rf1d2]} Qg4 38. c5 (38. Bxb6 Rxb3 39. Qd2 Rd3 $11) 38... bxc5 39. Qc4+ Rf7 40. Qxc5 $14 (40. Bxc5 Qf3 $11)) 37... Kf7 {[%emt 0:04:49][%cal Oh5h4]} 38. Qd8 {[%emt 0:00:54]} Kg6 {[%emt 0:01:17]} 39. Kg2 {[%emt 0:00:30]} (39. Qd4 $14) 39... h4 $2 {[%emt 0:00:20][%mdl 8192]} 40. gxh4 $18 {[%emt 0:01:13]} gxh4 {[%emt 0:01:17]} 41. Qxh4 {[%emt 0:00:15]} Qe5 {[%emt 0:02:02]} 42. Qg4+ {[%emt 0:00:06]} (42. Ng4 Qg5 $11) 42... Qg5 {[%emt 0:00:23]} (42... Kf7 $142 43. Qd7+ (43. Nd5 Qb2 $16) 43... Qe7 44. Qd5+ Qe6 45. Qh5+ Qg6+ 46. Qxg6+ Kxg6) 43. Qxg5+ {[%emt 0:00:24]} Kxg5 44. Nd5 {[%emt 0:00:42]} Rxb3 {[%emt 0:00:08]} 45. Bxb6 {[%emt 0:00:06]} ({And not} 45. Nxb6 e3 46. Be1 Rxb6 $11) 45... Ra3 $2 {[%emt 0:00:27] [#]} (45... Rb2+ 46. Kg3 Rb3+ 47. Kf2 Ra3) 46. Bxa5 $2 {[%emt 0:00:36]} ({Only move:} 46. c5 $1 $18 {[%cal Rc5c6] c6 is the strong threat.} Ra2+ 47. Kg3) 46... Rxa4 {[%emt 0:00:02]} 47. Bd2+ {[%emt 0:00:14]} ({White should try} 47. Bb4 $1 $14) 47... Kf5 $11 {[%emt 0:01:07][%cal Oa4a2] And now ...Ra2! would win. The position is equal.} 48. Kf2 {[%emt 0:01:06] With the idea Bc3.} Ke5 {[%emt 0:00:37]} 49. Nb6 {[%emt 0:00:46]} Ra2 {[%emt 0:00:22]} 50. Ke3 {[%emt 0:00:29]} Ra3+ {[%emt 0:00:06]} 51. Ke2 {[%emt 0:00:17]} Kd4 {[%emt 0:00:07]} 52. Nd5 {[%emt 0:00:34]} Kxc4 {[%emt 0:00:23]} 53. Ne3+ {[%emt 0:00:04] White used his chance. An interesting game.   Weighted Error Value: White=0.69/Black=0.42} 1/2-1/2

[Event "Oceania Zonal Open 2023"]
[Site "Melbourne"]
[Date "2023.01.24"]
[Round "3.8"]
[White "Litchfield, Frederick"]
[Black "Van Der Hoorn, Thomas"]
[Result "1-0"]
[ECO "E40"]
[WhiteElo "2119"]
[BlackElo "1898"]
[Annotator "TA"]
[PlyCount "39"]
[EventDate "2023.01.09"]
[EventType "swiss"]
[EventCountry "AUS"]
[SourceTitle "playchess.com"]
[Source "ChessBase"]
[SourceQuality "1"]
[TimeControl "5400+30"]

{[%evp 13,39,42,50,0,9,14,36,14,89,74,271,283,275,280,300,290,350,266,282,244,259,177,404,308,280,302,297,300]} 1. d4 {[%emt 0:00:31]} Nf6 {[%emt 0:00:15]} 2. c4 {[%emt 0:00:38]} e6 {[%emt 0:00:12]} 3. Nc3 {[%emt 0:00:55]} Bb4 {[%emt 0:00:11]} 4. e3 {[%emt 0:01:16]} c5 {[%emt 0:01:19]} 5. Bd3 {[%emt 0:01:01]} Bxc3+ {[%emt 0:02:27]} 6. bxc3 {[%emt 0:00:26]} d6 {[%emt 0:00:19]} 7. Ne2 {[%emt 0:01:31]} O-O {[%emt 0:01:10]} 8. Ng3 {[%emt 0:01:20] E40: Nimzo-Indian: Rubinstein (4 e3): Unusual Black 4th moves.} Nc6 {[%emt 0:02:18]} 9. O-O {[%emt 0:01:30]} Re8 {[%emt 0:05:27]} 10. f4 {[%emt 0:07:58] [#] White is slightly better.} b6 $146 {[%emt 0:10:54] [#]} (10... d5 $11 {keeps the balance.}) ({Predecessor:} 10... e5 11. fxe5 dxe5 12. d5 Na5 13. e4 Nd7 14. Qf3 f6 15. Be3 b6 16. Nf5 Nf8 {1-0 Jooyandeh,H-Asadi,S (2190) IRI-ch sf Teheran 2005 (6)}) 11. e4 $1 $16 {[%emt 0:04:01] e5 is the strong threat. White is more active.} e5 $2 {[%emt 0:21:21] This move loses the game for Black.} (11... cxd4 $16 12. cxd4 h6) 12. fxe5 $18 {[%emt 0:01:36][%mdl 64] Discovered Attack} dxe5 {[%emt 0:00:34]} 13. d5 {[%emt 0:00:13][%cal Bd4d5,Bd5d6][%mdl 32]} Ne7 {[%emt 0:01:14]} 14. Bg5 {[%emt 0:01:56]} Ng4 {[%emt 0:12:09]} 15. Be2 {[%emt 0:02:52]} (15. Qf3 Rf8 16. h3 f6 $18) 15... f6 {[%emt 0:03:05]} 16. Bc1 {[%emt 0:02:51]} (16. Bxg4 fxg5 17. Bh5 Ng6 $16) 16... f5 {[%emt 0:00:31]} 17. d6 {[%emt 0:05:07]} (17. Nxf5 $6 Nxf5 18. exf5 (18. Bxg4 Nd6 $11) 18... Nf6 $16) 17... Nc6 $2 {[%emt 0:02:06] [#]} (17... f4 {keeps fighting.}) 18. Bxg4 {[%emt 0:05:42]} ({Not} 18. Nxf5 Bxf5 19. Rxf5 (19. Bxg4 Bxg4 20. Qxg4 Qxd6 $15) 19... Nf6 $18) (18. exf5 Nf6 19. Bg5 Bb7 20. Bxf6 gxf6 $18) 18... fxg4 {[%emt 0:01:27]} 19. Qd5+ {[%emt 0:00:49]} Be6 {[%emt 0:00:20]} 20. Qxc6 {[%emt 0:00:11] Weighted Error Value: White=0.36/Black=0.61} 1-0

[Event "Oceania Zonal Open 2023"]
[Site "Melbourne"]
[Date "2023.01.24"]
[Round "3.8"]
[White "Ning, Isabelle Yixuan"]
[Black "Winkelman, Albert"]
[Result "1/2-1/2"]
[ECO "D48"]
[WhiteElo "1949"]
[BlackElo "2272"]
[Annotator "TA"]
[PlyCount "84"]
[EventDate "2023.01.09"]
[EventType "swiss"]
[EventCountry "AUS"]
[SourceTitle "playchess.com"]
[Source "ChessBase"]
[SourceQuality "1"]
[TimeControl "5400+30"]

{[%evp 18,84,4,-14,-31,-36,23,-3,57,53,69,41,181,175,177,17,7,0,0,-24,-20,-57,-60,-61,-56,-64,-64,-70,-55,-74,-60,-47,-31,-31,-38,-37,-32,-33,-33,-33,-33,-34,-5,-12,-6,-7,-10,-60,-60,-58,-62,-102,-8,-8,-8,-8,-8,-8,-8,-8,-8,-12,0,0,0,0,0,-8,-8]} 1. d4 {[%emt 0:00:04]} d5 {[%emt 0:00:08]} 2. c4 {[%emt 0:00:07]} c6 {[%emt 0:00:08]} 3. Nc3 {[%emt 0:00:06]} Nf6 {[%emt 0:00:07]} 4. e3 {[%emt 0:00:06]} e6 {[%emt 0:00:28]} 5. Nf3 {[%emt 0:00:13]} Nbd7 {[%emt 0:00:10]} 6. Bd3 {[%emt 0:00:11]} dxc4 {[%emt 0:00:10]} 7. Bxc4 {[%emt 0:00:06]} b5 {[%emt 0:00:09]} 8. Bd3 {[%emt 0:00:05]} a6 {[%emt 0:00:09]} 9. O-O {[%emt 0:01:41]} c5 {[%emt 0:00:31]} 10. e4 {[%emt 0:05:38] Recently 10.Ne4 got a lot of attention.} cxd4 {[%emt 0:01:54] D48: Semi-Slav: Meran System: 7...b5 8 Bd3 a6.} 11. Nxd4 {[%emt 0:00:23]} Nc5 {[%emt 0:02:28]} (11... Bb7 $15) 12. Bc2 {[%emt 0:00:35]} (12. Be2 $5) 12... b4 {[%emt 0:06:14]} (12... Bb7 $11) 13. e5 $14 {[%emt 0:06:17] [#]} Nfd7 $146 {[%emt 0:02:54]} ({Predecessor:} 13... bxc3 14. exf6 gxf6 15. bxc3 Bb7 16. Qe2 Qd5 17. f3 Qe5 18. Qf2 Bd6 19. Qh4 O-O-O 20. Re1 Qd5 21. Qxf6 Rhg8 22. Nb3 Qh5 23. h4 Nd7 {0-1 Leiber,B (2198)-Boidman,Y (2336) GER-chA Seniors 26th 2014 (8)}) 14. Ne4 {[%emt 0:02:57] White is more active.} Nxe5 {[%emt 0:01:56]} (14... Bb7 $1 $14 15. Qe2 (15. Bg5 Qb6 $11) 15... Qb6) 15. Bf4 $18 {[%emt 0:02:40]} Ng6 {[%emt 0:02:16]} 16. Bg3 {[%emt 0:01:27] [#]} (16. Bg5 $18 f6 17. Be3) 16... Bb7 $11 {[%emt 0:02:28]} 17. Nxc5 {[%emt 0:02:34]} Bxc5 {[%emt 0:00:11]} 18. Ba4+ {[%emt 0:02:16]} Ke7 $1 {[%emt 0:01:37]} ({Don't do} 18... Kf8 19. Nc6 Qb6 20. Qd7 $16) 19. Bc6 {[%emt 0:14:16]} Qxd4 {[%emt 0:01:20]} 20. Bxb7 {[%emt 0:00:37] [#] Hoping for Qe2.} Qxd1 {[%emt 0:01:26]} 21. Rfxd1 {[%emt 0:00:39]} Ra7 {[%emt 0:00:16]} 22. Be4 {[%emt 0:05:32]} Rd8 {[%emt 0:12:47]} 23. h4 {[%emt 0:09:14][%cal Bh2h4,Bh4h5][%mdl 32]} Bd4 {[%emt 0:05:05]} 24. h5 {[%emt 0:03:51]} Nf8 {[%emt 0:00:13]} 25. Rd2 {[%emt 0:07:58]} e5 {[%emt 0:00:23]} 26. Re1 {[%emt 0:04:35]} f6 {[%emt 0:00:46]} 27. Kf1 {[%emt 0:04:27]} g5 {[%emt 0:32:01]} 28. hxg6 {[%emt 0:01:42]} hxg6 {[%emt 0:05:01]} 29. f4 {[%emt 0:03:05]} Rad7 {[%emt 0:03:15]} 30. fxe5 {[%emt 0:02:24]} Bxe5 {[%emt 0:00:12]} 31. Rxd7+ {[%emt 0:00:32]} Rxd7 {[%emt 0:00:11]} 32. Bc6 {[%emt 0:04:00]} (32. Bc2 $11) 32... Rd2 $15 {[%emt 0:00:13]} 33. Bxe5 {[%emt 0:01:38]} fxe5 {[%emt 0:00:07][%mdl 4096] Endgame KRB-KRN} 34. Bb7 {[%emt 0:04:05]} Rxb2 {[%emt 0:10:24]} ({Black should play} 34... Kf6 $17 35. Re2 Rd1+ 36. Re1 Rd6) 35. Rxe5+ $11 {[%emt 0:00:26] The position is equal.} Kd6 {[%emt 0:00:09]} 36. Ra5 {[%emt 0:00:28]} Kc7 {[%emt 0:00:57]} 37. Bxa6 {[%emt 0:00:53]} Kb6 {[%emt 0:00:18]} 38. Ra4 {[%emt 0:00:07]} Nd7 {[%emt 0:02:20]} 39. Be2 {[%emt 0:02:17]} Nc5 {[%emt 0:00:14]} 40. Ra8 {[%emt 0:00:08]} Ne4 {[%emt 0:00:15]} 41. Bd3 {[%emt 0:02:03]} Nc3 {[%emt 0:01:58]} 42. Bxg6 {[%emt 0:02:54]} Rxa2 {[%emt 0:03:19] Weighted Error Value: White=0.17 (very precise) /Black=0.19 (very precise)} 1/2-1/2

[Event "Oceania Zonal Open 2023"]
[Site "Melbourne"]
[Date "2023.01.24"]
[Round "3.9"]
[White "McGowan, Cameron"]
[Black "Koh, Cedric"]
[Result "0-1"]
[ECO "C50"]
[WhiteElo "2175"]
[BlackElo "1970"]
[Annotator "TA"]
[PlyCount "90"]
[EventDate "2023.01.09"]
[EventType "swiss"]
[EventCountry "AUS"]
[SourceTitle "playchess.com"]
[Source "ChessBase"]
[SourceQuality "1"]
[TimeControl "5400+30"]

{[%evp 12,90,8,9,25,22,29,24,30,21,22,4,0,8,7,13,10,0,0,0,0,0,0,0,0,0,0,0,0,0,0,-6,0,0,-7,-5,-5,-14,-8,-11,-14,-37,-4,-28,0,-48,-38,-33,-13,-49,-29,-50,-16,-58,-52,-56,-58,-253,-263,-352,-341,-461,-444,-379,-52,-116,-8,-519,-495,-547,-547,-542,-516,-5589,-5273,-5206,-5198,-1760,-912,-1017,-995]} 1. e4 {[%emt 0:00:05]} e5 {[%emt 0:00:18]} 2. Bc4 {[%emt 0:00:31]} Nf6 {[%emt 0:00:13]} 3. d3 {[%emt 0:00:04]} Nc6 {[%emt 0:00:11]} 4. Nf3 {[%emt 0:00:09]} Bc5 {[%emt 0:00:22]} 5. O-O {[%emt 0:00:13]} O-O {[%emt 0:00:28]} 6. Bg5 {[%emt 0:01:09][%cal Bc1g5,Bg5h4,Bh4g3][%mdl 32]} h6 {[%emt 0:00:11]} 7. Bh4 {[%emt 0:00:03]} Be7 {[%emt 0:00:15] C50: Hungarian Defence and Giuoco Pianissimo.} 8. Bg3 {[%emt 0:00:29]} d6 {[%emt 0:00:15]} 9. a4 {[%emt 0:00:17]} Kh8 {[%emt 0:01:43] White has an edge.} 10. c3 {[%emt 0:11:01] [#]} Ng8 $146 {[%emt 0:03:35]} ({Predecessor:} 10... Nh7 11. Nbd2 f5 12. exf5 Bxf5 13. b4 a6 14. Qe2 Qd7 15. h3 Rae8 16. Rfe1 Bf6 {0-1 Najer,E (2670)-Paravyan,D (2634) Moscow Nutcracker rapid 2018 (5.2)}) 11. d4 {[%emt 0:05:06][%cal Rd4e5]} f5 $1 {[%emt 0:04:29]} 12. exf5 {[%emt 0:01:20][%cal Rd4e5]} (12. dxe5 $2 f4 13. exd6 cxd6 14. Bxf4 (14. Bxg8 $2 Kxg8 15. Qd5+ Kh8 $19) 14... Rxf4 $19) 12... e4 {[%emt 0:01:09]} 13. Ne1 {[%emt 0:01:43][%cal Bf3e1,Be1c2,Bc2e3][%mdl 32]} d5 {[%emt 0:05:50]} 14. Be2 {[%emt 0:01:28]} Bxf5 {[%emt 0:03:59]} 15. Nc2 {[%emt 0:00:25]} Bd6 {[%emt 0:04:33]} 16. Ne3 {[%emt 0:10:51]} Nce7 {[%emt 0:07:04]} 17. c4 $1 {[%emt 0:18:07]} Bxg3 {[%emt 0:06:24]} 18. hxg3 {[%emt 0:03:16]} Be6 {[%emt 0:09:36]} 19. Nc3 {[%emt 0:10:18]} c6 {[%emt 0:08:15]} 20. cxd5 {[%emt 0:04:13]} cxd5 {[%emt 0:03:45]} 21. b4 {[%emt 0:08:38]} Nf6 {[%emt 0:04:31]} 22. b5 {[%emt 0:00:41]} Nf5 {[%emt 0:01:47]} 23. Nxf5 {[%emt 0:02:48]} Bxf5 {[%emt 0:01:09]} 24. a5 {[%emt 0:00:01]} Rc8 {[%emt 0:02:39]} 25. Qd2 {[%emt 0:04:27]} Bg4 {[%emt 0:02:12]} 26. Rfc1 {[%emt 0:05:20]} Bxe2 {[%emt 0:00:45]} 27. Nxe2 {[%emt 0:00:02]} Qd7 {[%emt 0:03:37]} 28. b6 {[%emt 0:03:50]} (28. Rxc8 $11 Rxc8 29. Rc1) 28... axb6 $15 {[%emt 0:01:28]} 29. axb6 {[%emt 0:00:01]} Rc6 {[%emt 0:02:11]} 30. Qb4 {[%emt 0:06:05]} Rfc8 {[%emt 0:05:15]} 31. Rxc6 {[%emt 0:02:16]} Qxc6 {[%emt 0:00:13]} 32. Qb2 {[%emt 0:00:58]} Qd6 {[%emt 0:08:26]} 33. Rb1 {[%emt 0:00:01]} Rc6 {[%emt 0:00:59]} 34. Nc3 $2 {[%emt 0:00:00] [#]} (34. f3 $15) 34... e3 $1 $19 {[%emt 0:01:16][%mdl 512] aiming for ...exf2+.} 35. Nb5 {[%emt 0:01:17]} (35. f3 Qxg3) 35... Qe6 {[%emt 0:02:39]} (35... Rxb6 $2 36. Nxd6 exf2+ 37. Kxf2 Ng4+ 38. Kf3 Rxb2 39. Rxb2 $18) 36. Nc7 {[%emt 0:00:31]} Qf5 {[%emt 0:02:10]} 37. f3 {[%emt 0:00:42]} Nd7 $2 {[%emt 0:00:51]} (37... Qg6 $19 {Threatens to win with ...Rc2.} 38. g4 Qd3) 38. Re1 {[%emt 0:00:30] [#]} (38. Rc1 $1 $15) 38... Rxb6 {[%emt 0:00:48]} ({Don't play} 38... Nxb6 $6 39. Rxe3 Rxc7 40. Qxb6 (40. Re8+ Kh7 $17) 40... Rc1+ 41. Kf2 $11) ({Better is} 38... Qg5 $1 $17 39. Qb3 Nxb6 40. Rxe3 Rxc7 41. Re8+ Kh7 42. Qb1+ g6 43. Qxb6 Qxg3) 39. Qa3 $2 {[%emt 0:00:19][%mdl 8192]} (39. Qe2 $1 $11) 39... Qc2 {[%emt 0:02:23] ( -> ...Qf2+). Black is clearly winning.} 40. Nxd5 {[%emt 0:00:14]} Qf2+ {[%emt 0:00:17]} 41. Kh2 {[%emt 0:00:02] [#]} Rg6 {[%emt 0:01:20]} ({Worse is} 41... Qxe1 42. Nxb6 Nxb6 43. Qf8+ Kh7 44. Qf5+ Kh8 45. Qf8+ Kh7 46. Qf5+ Kh8 47. Qf8+ $11) 42. Nxe3 {[%emt 0:01:28]} (42. Re2 $142 Qxe2 43. Nf4) 42... Qxg3+ {[%emt 0:00:07]} 43. Kg1 {[%emt 0:00:04]} Qxe1+ {[%emt 0:00:06]} 44. Nf1 {[%emt 0:00:06]} Qe8 {[%emt 0:00:50]} 45. Ne3 {[%emt 0:00:39]} Re6 {[%emt 0:00:17] Weighted Error Value: White=0.47/Black=0.39} 0-1